[Event "Chinese League Div-A Rapid 2022"]
[Site "Fuling,Chongqing"]
[Date "2022.09.07"]
[Round "2.14"]
[White "Zhou, Guijue"]
[Black "Shao, Qiyu"]
[Result "1-0"]
[ECO "B23"]
[WhiteElo "2225"]
[BlackElo "1467"]
[Annotator "RC"]
[PlyCount "119"]
[EventDate "2022.09.07"]
[EventType "team-tourn"]
[EventCountry "CHN"]
[SourceTitle "playchess.com"]
[Source "ChessBase"]
[SourceQuality "1"]
[TimeControl "1500+10"]

1. e4 {[%emt 0:00:02]} c5 {[%emt 0:00:01]} 2. Nc3 {[%emt 0:00:01]} Nc6 {[%emt 0:00:11]} 3. Bb5 {[%emt 0:00:02]} g6 {[%emt 0:00:03]} 4. Bxc6 {[%emt 0:00:02]} bxc6 {[%emt 0:00:09]} 5. f4 {[%emt 0:00:02]} d5 {[%emt 0:00:13]} 6. d3 {[%emt 0:00:13]} Bg7 {[%emt 0:00:07]} 7. e5 {[%emt 0:00:48]} Rb8 {[%emt 0:00:40]} 8. Nf3 {[%emt 0:00:04]} Nh6 {[%emt 0:00:20]} 9. O-O {[%emt 0:00:23]} O-O {[%emt 0:00:10]} 10. Na4 {[%emt 0:00:46]} Qa5 {[%emt 0:00:35]} 11. b3 {[%emt 0:00:08]} c4 {[%emt 0:01:47]} 12. Bd2 {[%emt 0:00:26]} Qa6 {[%emt 0:00:25]} 13. Nc5 {[%emt 0:00:39]} Qb6 {[%emt 0:00:56]} 14. d4 {[%emt 0:00:04]} Nf5 {[%emt 0:00:57]} 15. c3 {[%emt 0:00:41]} Rd8 {[%emt 0:02:50]} 16. bxc4 {[%emt 0:03:58]} dxc4 {[%emt 0:00:44]} 17. Qe2 {[%emt 0:00:04]} Ba6 {[%emt 0:00:40]} 18. g4 {[%emt 0:01:25]} Nh6 {[%emt 0:00:04]} 19. e6 {[%emt 0:00:01]} Bc8 {[%emt 0:07:26]} 20. Rfe1 {[%emt 0:01:09]} f6 {[%emt 0:04:13]} 21. h3 {[%emt 0:00:12]} Qc7 {[%emt 0:03:31]} 22. Kg2 {[%emt 0:00:44]} Rb2 {[%emt 0:00:56]} 23. Na4 {[%emt 0:00:11]} Rb8 {[%emt 0:01:01]} 24. Qxc4 {[%emt 0:00:15]} Rd5 {[%emt 0:00:45]} 25. Nc5 {[%emt 0:00:50]} Rb2 {[%emt 0:00:09]} 26. Qe2 {[%emt 0:01:40]} Kh8 {[%emt 0:00:09]} 27. Reb1 {[%emt 0:00:20]} Rxb1 {[%emt 0:00:04]} 28. Rxb1 {[%emt 0:00:01]} Ng8 {[%emt 0:00:06]} 29. c4 {[%emt 0:01:43]} Rd8 {[%emt 0:00:01]} 30. Qe1 {[%emt 0:00:18]} Qd6 {[%emt 0:00:33]} 31. Nb7 {[%emt 0:00:40]} Bxb7 {[%emt 0:00:01]} 32. Rxb7 {[%emt 0:00:01]} Qa3 {[%emt 0:00:16]} 33. Qb1 {[%emt 0:00:39]} f5 {[%emt 0:00:20]} 34. g5 {[%emt 0:00:24]} Qa4 {[%emt 0:00:09]} 35. Qb3 {[%emt 0:00:38]} Qa6 {[%emt 0:00:00]} 36. a4 {[%emt 0:01:03]} h6 {[%emt 0:00:05]} 37. h4 {[%emt 0:00:09]} h5 {[%emt 0:00:05]} 38. a5 {[%emt 0:00:12]} Kh7 {[%emt 0:00:02]} 39. Rd7 {[%emt 0:00:32]} Qc8 {[%emt 0:00:30]} 40. Rxd8 {[%emt 0:00:09]} Qxd8 {[%emt 0:00:02]} 41. d5 {[%emt 0:00:00]} c5 {[%emt 0:00:27]} 42. Qb5 {[%emt 0:00:06]} Qd6 {[%emt 0:00:10]} 43. Be3 {[%emt 0:00:03]} Bd4 {[%emt 0:00:01]} 44. Qd7 {[%emt 0:00:55]} Qb8 {[%emt 0:00:07]} 45. Bxd4 {[%emt 0:01:52]} cxd4 {[%emt 0:00:01]} 46. d6 {[%emt 0:00:31]} Qxd6 {[%emt 0:00:35]} 47. Qxd6 {[%emt 0:00:02]} exd6 {[%emt 0:00:02]} 48. Nxd4 {[%emt 0:00:00]} Ne7 {[%emt 0:00:02]} 49. Nb5 {[%emt 0:00:03]} d5 {[%emt 0:00:07]} 50. c5 {[%emt 0:00:21]} a6 {[%emt 0:00:24]} 51. Nc7 {[%emt 0:00:01]} d4 {[%emt 0:00:03]} 52. Nxa6 {[%emt 0:00:13]} Kg7 {[%emt 0:00:23]} 53. Nb4 {[%emt 0:00:07]} Nc8 {[%emt 0:00:04]} 54. a6 {[%emt 0:00:05]} Kf8 {[%emt 0:00:04]} 55. Nc6 {[%emt 0:00:02]} Ke8 {[%emt 0:00:20]} 56. a7 {[%emt 0:00:14]} Nxa7 {[%emt 0:00:01]} 57. Nxa7 {[%emt 0:00:01]} Ke7 {[%emt 0:00:01]} 58. c6 {[%emt 0:00:02]} Kd6 {[%emt 0:00:09]} 59. e7 {[%emt 0:00:05]} Kxe7 {[%emt 0:00:02]} 60. c7 {[%emt 0:00:01]} 1-0

[Event "Chinese League Div-A Rapid 2022"]
[Site "Fuling,Chongqing"]
[Date "2022.09.07"]
[Round "2.15"]
[White "Zhao, Shengxin"]
[Black "Sun, Fanghui"]
[Result "1/2-1/2"]
[ECO "E05"]
[WhiteElo "2112"]
[BlackElo "2182"]
[Annotator "RC"]
[PlyCount "83"]
[EventDate "2022.09.07"]
[EventType "team-tourn"]
[EventCountry "CHN"]
[SourceTitle "playchess.com"]
[Source "ChessBase"]
[SourceQuality "1"]
[TimeControl "1500+10"]

1. d4 {[%emt 0:00:03]} Nf6 {[%emt 0:00:03]} 2. c4 {[%emt 0:00:04]} e6 {[%emt 0:00:02]} 3. g3 {[%emt 0:00:05]} d5 {[%emt 0:00:04]} 4. Bg2 {[%emt 0:00:04]} Be7 {[%emt 0:00:02]} 5. Nf3 {[%emt 0:00:16]} O-O {[%emt 0:00:03]} 6. O-O {[%emt 0:00:07]} dxc4 {[%emt 0:00:02]} 7. Qc2 {[%emt 0:00:13]} a6 {[%emt 0:00:04]} 8. a4 {[%emt 0:00:07]} Bd7 {[%emt 0:03:52]} 9. Qxc4 {[%emt 0:00:21]} Bc6 {[%emt 0:00:07]} 10. Bf4 {[%emt 0:00:12]} Nbd7 {[%emt 0:01:59]} 11. Nc3 {[%emt 0:00:43]} Rc8 {[%emt 0:01:19]} 12. Rfd1 {[%emt 0:01:32]} Bd6 {[%emt 0:02:26]} 13. Rac1 {[%emt 0:02:31]} Qe7 {[%emt 0:00:52]} 14. Qb3 {[%emt 0:00:44]} Bxf4 {[%emt 0:01:55]} 15. gxf4 {[%emt 0:00:06]} Nd5 {[%emt 0:00:53]} 16. e3 {[%emt 0:01:02]} Nxc3 {[%emt 0:00:45]} 17. Rxc3 {[%emt 0:00:33]} Bd5 {[%emt 0:00:03]} 18. Qc2 {[%emt 0:00:31]} Nf6 {[%emt 0:00:45]} 19. Ne5 {[%emt 0:00:42]} Bxg2 {[%emt 0:01:33]} 20. Kxg2 {[%emt 0:00:05]} Nd5 {[%emt 0:01:59]} 21. Rc4 {[%emt 0:02:03]} c6 {[%emt 0:00:30]} 22. b3 {[%emt 0:01:55]} Nb6 {[%emt 0:04:28]} 23. Rc5 {[%emt 0:02:01]} f6 {[%emt 0:00:07]} 24. Nf3 {[%emt 0:00:43]} Nd7 {[%emt 0:00:02]} 25. Rc3 {[%emt 0:00:57]} Rce8 {[%emt 0:00:42]} 26. Qd3 {[%emt 0:01:48]} Rf7 {[%emt 0:00:49]} 27. Qc4 {[%emt 0:02:00]} h6 {[%emt 0:01:18]} 28. Rcd3 {[%emt 0:02:16]} Nb6 {[%emt 0:00:01]} 29. Qc5 {[%emt 0:01:02]} Nd7 {[%emt 0:00:21]} 30. Qa5 {[%emt 0:00:49]} Qd6 {[%emt 0:00:16]} 31. Qh5 {[%emt 0:01:31]} Qd5 {[%emt 0:00:01]} 32. Qg6 {[%emt 0:00:25]} Nf8 {[%emt 0:00:32]} 33. Qg3 {[%emt 0:00:02]} Qe4 {[%emt 0:00:16]} 34. Kg1 {[%emt 0:00:23]} Qg6 {[%emt 0:00:36]} 35. Kf1 {[%emt 0:00:31]} Qe4 {[%emt 0:00:15]} 36. Ke2 {[%emt 0:00:20]} Rd8 {[%emt 0:00:21]} 37. Nd2 {[%emt 0:00:16]} Qf5 {[%emt 0:00:14]} 38. e4 {[%emt 0:01:22]} Qh5+ {[%emt 0:00:01]} 39. Qf3 {[%emt 0:00:04]} Qg6 {[%emt 0:00:16]} 40. Qg3 {[%emt 0:00:32]} Qh5+ {[%emt 0:00:05]} 41. Qf3 {[%emt 0:00:03]} Qg6 {[%emt 0:00:04]} 42. Qg3 {[%emt 0:00:10]} 1/2-1/2

[Event "Chinese League Div-A Rapid 2022"]
[Site "Fuling,Chongqing"]
[Date "2022.09.07"]
[Round "2.16"]
[White "Li, Haoyu"]
[Black "Huang, Renjie"]
[Result "1/2-1/2"]
[ECO "C08"]
[WhiteElo "2369"]
[BlackElo "2446"]
[Annotator "TA"]
[PlyCount "163"]
[EventDate "2022.09.07"]
[EventType "team-tourn"]
[EventCountry "CHN"]
[SourceTitle "playchess.com"]
[Source "ChessBase"]
[SourceQuality "1"]
[TimeControl "1500+10"]

{[%evp 22,163,29,19,17,4,23,7,22,0,34,0,23,0,25,0,3,5,8,-13,-8,-12,-4,0,0,-18,-10,-50,-36,-209,-221,-313,-296,-1386,-39,-49,-39,-90,-98,-80,-95,-79,-72,-69,-80,-132,-87,-87,-27,-36,-20,-20,0,0,0,0,0,0,0,0,0,0,0,0,0,0,0,0,0,0,0,0,0,0,0,0,0,0,0,0,0,0,0,0,0,0,0,-4,0,-2,0,-12,-12,-13,-8,-14,-15,-46,0,0,0,0,0,0,0,0,0,0,0,0,0,0,0,0,8,0,0,0,0,0,8,0,56,56,74,70,77,77,4562,1145,680,0,70,22,22,22,22,22,22,22,22,22,20,-8]} 1. e4 {[%emt 0:00:03]} c5 {[%emt 0:00:01]} 2. Nf3 {[%emt 0:00:05]} e6 {[%emt 0:00:01]} 3. c3 {[%emt 0:00:09]} d5 {[%emt 0:00:05]} 4. exd5 {[%emt 0:00:18]} exd5 {[%emt 0:00:01]} 5. d4 {[%emt 0:00:14]} Nf6 {[%emt 0:00:10]} 6. Bb5+ {[%emt 0:00:29]} Bd7 {[%emt 0:00:13]} 7. Bxd7+ {[%emt 0:00:28]} Nbxd7 {[%emt 0:00:02][%cal Bb8d7,Bd7c5,Bc5e4][%mdl 32]} 8. O-O {[%emt 0:00:23]} Be7 {[%emt 0:00:04]} 9. dxc5 {[%emt 0:00:48]} Nxc5 {[%emt 0:00:04]} 10. Nbd2 {[%emt 0:00:12]} O-O {[%emt 0:00:03]} 11. Nb3 {[%emt 0:00:18]} Nce4 {[%emt 0:00:10]} 12. Bf4 {[%emt 0:00:27]} Re8 {[%emt 0:00:11] C08: French Tarrasch: 3...c5 4 exd5 exd5 sidelines.} 13. Qd3 {[%emt 0:00:38] [#]} h6 $146 {[%emt 0:00:44]} ({Predecessor:} 13... Qd7 14. Nbd4 a6 15. Rad1 Rac8 16. h3 Bc5 17. Be5 Re7 18. Bxf6 Nxf6 19. Nf5 Re4 20. Ng3 {0-1 (36) Ter Sahakyan,S (2369)-Lputian,S (2616) Yerevan 2008}) 14. Rad1 {[%emt 0:00:25]} Qb6 {[%emt 0:00:23]} 15. Nfd4 {[%emt 0:01:42]} a6 {[%emt 0:01:03][%cal Ba7a6,Ba6a5,Ba5a4][%mdl 32]} 16. f3 {[%emt 0:05:14]} (16. Nf5 {is interesting.} Bf8 17. h3 Rac8 18. Qc2) 16... Nc5 {[%emt 0:00:26]} 17. Qd2 {[%emt 0:01:19]} a5 {[%emt 0:00:39]} 18. Rfe1 {[%emt 0:00:52]} a4 {[%emt 0:00:20]} 19. Nxc5 {[%emt 0:00:09]} Bxc5 {[%emt 0:00:02]} 20. Bg3 {[%emt 0:00:43]} Bxd4+ {[%emt 0:00:29]} 21. cxd4 {[%emt 0:00:10]} Nd7 {[%emt 0:00:17][%cal Bf6d7,Bd7f8,Bf8e6,Be6d4][%mdl 32]} 22. Rxe8+ {[%emt 0:03:43]} Rxe8 {[%emt 0:00:10]} 23. Re1 {[%emt 0:00:21]} Rc8 {[%emt 0:00:13]} 24. Re7 {[%emt 0:01:09]} Nf8 {[%emt 0:00:07][%cal Oa4a3]} 25. Qf4 $2 {[%emt 0:01:12]} (25. Re3 $15) 25... Qg6 $19 {[%emt 0:00:02]} 26. h3 {[%emt 0:01:51]} (26. Rxb7 {gets mated.} Qb1+ 27. Kf2 Rc2+) (26. Re5 {might work better.}) 26... Ne6 {[%emt 0:00:20]} 27. Qg4 {[%emt 0:01:51]} (27. Qe5 Rc1+ 28. Be1 (28. Kh2 $2 Qb1 $19)) 27... Qxg4 $2 {[%emt 0:03:26]} (27... Rc1+ $19 28. Kh2 Qxg4 29. hxg4 Rc2 30. Rxb7 Nxd4) 28. hxg4 {[%emt 0:00:04][%mdl 4096] Endgame KRB-KRN} b5 {[%emt 0:00:28]} 29. Rb7 {[%emt 0:01:21]} (29. Rd7 $15) 29... Rc1+ $17 {[%emt 0:00:42]} 30. Kh2 {[%emt 0:00:06]} Rc2 {[%emt 0:00:10]} 31. Rxb5 {[%emt 0:00:25]} Nxd4 {[%emt 0:00:01]} 32. Rb8+ {[%emt 0:00:06]} Kh7 {[%emt 0:00:01] Strongly threatening ...Nxf3+.} 33. Kh3 {[%emt 0:00:19]} (33. f4 $142) 33... Ne6 {[%emt 0:00:17]} 34. Bd6 {[%emt 0:02:48] [#]} d4 {[%emt 0:00:10]} (34... Rc6 $1 $17 {[%cal Rc6d6]} 35. Ba3 Nf4+ 36. Kg3 g5) 35. Rb5 $11 {[%emt 0:00:11]} d3 {[%emt 0:01:01][%cal Bd4d3,Bd3d2][%mdl 32]} 36. Rd5 {[%emt 0:00:15]} d2 {[%emt 0:00:01]} 37. a3 {[%emt 0:00:18]} Rxb2 {[%emt 0:00:25]} 38. Kg3 {[%emt 0:00:05]} g5 {[%emt 0:02:51]} 39. Bb4 {[%emt 0:00:09]} Nf4 {[%emt 0:00:49]} 40. Rxd2 {[%emt 0:00:04]} Rb3 {[%emt 0:00:48]} 41. Bd6 {[%emt 0:00:05]} Nd3 {[%emt 0:00:18]} 42. Kh2 {[%emt 0:00:06]} Kg6 {[%emt 0:00:09]} 43. Kg1 {[%emt 0:00:04]} Kf6 {[%emt 0:00:13]} 44. Kf1 {[%emt 0:00:08]} Ke6 {[%emt 0:00:33]} 45. Bf8 {[%emt 0:00:14]} f6 {[%emt 0:00:01]} 46. Ke2 {[%emt 0:00:06]} Ne5 {[%emt 0:00:15]} 47. Rd4 {[%emt 0:00:18]} Ng6 {[%emt 0:00:14]} 48. Bb4 {[%emt 0:00:15]} Nf4+ {[%emt 0:00:20]} 49. Kf1 {[%emt 0:00:13]} Ke5 {[%emt 0:00:46]} 50. Re4+ {[%emt 0:00:15]} Kd5 {[%emt 0:00:01]} 51. Bf8 {[%emt 0:00:07]} Rb1+ {[%emt 0:00:18]} 52. Kf2 $1 {[%emt 0:00:01]} Rb2+ {[%emt 0:00:02]} 53. Kf1 {[%emt 0:00:07]} Nxg2 {[%emt 0:00:24]} 54. Rxa4 {[%emt 0:00:13]} Nh4 {[%emt 0:00:19]} 55. f4 {[%emt 0:00:24]} Ng6 {[%emt 0:01:00]} 56. Bxh6 {[%emt 0:00:09]} Nxf4 {[%emt 0:00:03]} 57. Bg7 {[%emt 0:00:06]} Nd3 {[%emt 0:00:23]} 58. Kg1 {[%emt 0:00:09]} Rb6 {[%emt 0:00:17]} 59. Ra5+ {[%emt 0:00:14]} Ke4 {[%emt 0:00:19]} (59... Ke6 $1 $15) 60. Rf5 {[%emt 0:00:11]} Ne5 {[%emt 0:01:41]} 61. Rxf6 {[%emt 0:00:13]} Rb7 {[%emt 0:00:19]} 62. Bf8 {[%emt 0:00:08]} Nxg4 {[%emt 0:00:04]} 63. Rf1 {[%emt 0:00:05]} Rb2 {[%emt 0:00:57]} 64. Re1+ {[%emt 0:00:08]} Kf3 {[%emt 0:00:29]} 65. Rf1+ {[%emt 0:00:09]} Kg3 {[%emt 0:00:12]} 66. Bd6+ {[%emt 0:00:02]} Kh4 {[%emt 0:00:01]} 67. Rf3 {[%emt 0:00:10]} Nh6 {[%emt 0:00:28]} 68. Bc5 {[%emt 0:00:21]} Kg4 {[%emt 0:00:07]} 69. Rf2 {[%emt 0:00:11]} Rb1+ {[%emt 0:00:02]} 70. Kh2 {[%emt 0:00:02]} Kh4 {[%emt 0:00:22] [#] And now ...Ng4+ would win.} 71. Ra2 {[%emt 0:00:12]} Nf5 {[%emt 0:00:42]} (71... Ng4+ $11 72. Kg2 Rc1) 72. a4 $1 $14 {[%emt 0:00:10] Threatens to win with a5.} g4 {[%emt 0:00:14] ( -> ...g3+)} 73. a5 {[%emt 0:00:08] a6 is the strong threat.} g3+ {[%emt 0:00:42]} 74. Kg2 {[%emt 0:00:01]} Kg4 $2 {[%emt 0:00:01][%mdl 8192]} (74... Rc1 $16 75. Bb6 Rc8) 75. Ra4+ $18 {[%emt 0:00:00]} Kg5 {[%emt 0:00:00]} 76. Ra2 $2 {[%emt 0:00:12]} ({White has to play} 76. a6 $18 {Black must now prevent a7.} Rb2+ 77. Kf3 Rb3+ 78. Kg2 Rb2+ 79. Kf3 Rb3+ 80. Kg2 Rb2+) 76... Rb5 {[%emt 0:00:43]} ({Black should try} 76... Kf4 $11 77. Ra4+ Ke5) 77. a6 {[%emt 0:00:10]} Rxc5 $11 {[%emt 0:02:14] The position is equal.} 78. a7 {[%emt 0:00:02]} Rc8 {[%emt 0:00:01]} 79. a8=Q {[%emt 0:00:02]} Rxa8 {[%emt 0:00:02]} 80. Rxa8 {[%emt 0:00:02]} Kg4 {[%emt 0:00:08]} 81. Rg8+ {[%emt 0:00:02]} Kf4 {[%emt 0:00:01]} 82. Rxg3 {[%emt 0:00:01] Quite a comeback for White.  Weighted Error Value: White=0.34/Black=0.24 (precise)} 1/2-1/2

[Event "Chinese League Div-A Rapid 2022"]
[Site "Fuling,Chongqing"]
[Date "2022.09.07"]
[Round "2.17"]
[White "Zhang, Di"]
[Black "Liu, Qingnan"]
[Result "1-0"]
[ECO "B20"]
[WhiteElo "2108"]
[BlackElo "2542"]
[Annotator "TA"]
[PlyCount "119"]
[EventDate "2022.09.07"]
[EventType "team-tourn"]
[EventCountry "CHN"]
[SourceTitle "playchess.com"]
[Source "ChessBase"]
[SourceQuality "1"]
[TimeControl "1500+10"]

{[%evp 11,119,-2,37,41,50,52,44,31,76,58,63,71,81,89,83,79,88,89,88,102,79,91,91,91,128,110,136,133,134,139,149,112,131,77,102,95,89,20,14,18,24,26,26,0,14,28,20,18,40,31,38,49,157,157,180,181,183,174,148,148,185,168,316,276,265,239,262,271,455,237,266,251,251,203,202,103,103,103,103,103,103,103,103,0,103,89,89,89,103,103,103,103,103,0,103,89,89,89,103,103,103,0,89,0,89,0,103,104,685,649]} 1. e4 {[%emt 0:00:02]} c5 {[%emt 0:00:08]} 2. g3 {[%emt 0:00:01]} g6 {[%emt 0:01:23]} 3. Bg2 {[%emt 0:00:04]} Bg7 {[%emt 0:00:01]} 4. c3 {[%emt 0:00:05]} Nc6 {[%emt 0:00:03]} 5. Ne2 {[%emt 0:00:02]} d6 {[%emt 0:02:08]} 6. O-O {[%emt 0:01:36]} Nf6 {[%emt 0:00:07]} 7. d4 {[%emt 0:00:15] B20: Sicilian: Unusual White 2nd moves.} cxd4 {[%emt 0:00:03]} 8. cxd4 {[%emt 0:00:01]} O-O {[%emt 0:00:02]} 9. h3 {[%emt 0:01:12] [#] White is slightly better.} a5 $146 {[%emt 0:00:52]} ({Predecessor:} 9... e5 10. d5 Ne7 11. Nbc3 Nd7 12. g4 a6 13. Ng3 Kh8 14. Bg5 f6 15. Be3 Qe8 16. Kh2 f5 17. exf5 gxf5 18. gxf5 e4 19. Ncxe4 Nxf5 20. Nxf5 Rxf5 {1-0 (43) Najer,E (2648)-Murzin,V (2470) Tornelo INT 2020}) 10. Nbc3 {[%emt 0:00:12]} e5 {[%emt 0:00:16]} 11. Be3 {[%emt 0:00:57]} exd4 {[%emt 0:04:41]} 12. Nxd4 {[%emt 0:00:02]} Nxd4 {[%emt 0:00:06]} 13. Bxd4 {[%emt 0:00:02]} Be6 {[%emt 0:00:02]} 14. Re1 {[%emt 0:01:58]} Qd7 {[%emt 0:01:23]} 15. Qf3 {[%emt 0:00:17]} Ne8 {[%emt 0:02:57]} 16. Bxg7 {[%emt 0:00:03]} Kxg7 {[%emt 0:00:20]} 17. Kh2 {[%emt 0:00:03]} Nc7 {[%emt 0:01:28]} 18. Rad1 {[%emt 0:00:46]} Rad8 {[%emt 0:02:22]} 19. Qe3 {[%emt 0:02:33]} Qc6 {[%emt 0:04:04]} 20. e5 {[%emt 0:05:08]} d5 {[%emt 0:00:13]} 21. Qg5 {[%emt 0:00:01]} Rd7 {[%emt 0:03:25]} 22. Ne2 {[%emt 0:00:23] 0x0.001452079dbcdp-1022s more active pieces.} (22. Rc1 $142) 22... Qb6 $16 {[%emt 0:00:00][%csl LRb2,LRf2]} 23. Nf4 {[%emt 0:01:24]} Ne8 {[%emt 0:00:01]} 24. Nh5+ {[%emt 0:01:26]} (24. Re2 $16) 24... Kh8 $1 $11 {[%emt 0:00:00]} 25. Nf6 {[%emt 0:00:06]} Nxf6 {[%emt 0:00:06]} 26. Qxf6+ {[%emt 0:00:01]} Kg8 {[%emt 0:00:01]} 27. h4 {[%emt 0:03:18][%cal Og2d5]} Qd8 {[%emt 0:01:15]} (27... Qxb2 $5 {[%cal Rh7h5]} 28. h5 (28. a4 h5 $15) 28... gxh5 $11) 28. Qf4 {[%emt 0:00:04]} d4 {[%emt 0:00:03] Prevents Re3.} 29. b3 {[%emt 0:01:31]} h5 {[%emt 0:00:43]} 30. Rd3 {[%emt 0:00:18]} (30. Rd2 $5 {[%cal Re1d1]}) 30... Bf5 {[%emt 0:00:58]} 31. Be4 {[%emt 0:00:02]} Bxe4 {[%emt 0:00:25]} ({Better is} 31... Bg4 $14) 32. Rxe4 $16 {[%emt 0:00:05]} Re8 {[%emt 0:00:00]} 33. Rexd4 {[%emt 0:00:47]} Rxd4 {[%emt 0:00:01]} 34. Rxd4 $18 {[%emt 0:00:01][%mdl 4096] Endgame KQR-KQR} Qc7 {[%emt 0:00:46]} 35. Rd5 {[%emt 0:00:29]} b6 {[%emt 0:00:22]} 36. Qf6 {[%emt 0:00:35]} a4 {[%emt 0:00:11]} (36... Kh7 {might work better.} 37. Rd6 b5) 37. e6 {[%emt 0:01:20] White threatens Rd7 and mate.} Qe7 {[%emt 0:00:00]} 38. exf7+ {[%emt 0:00:37]} Qxf7 {[%emt 0:00:01]} 39. Qd4 {[%emt 0:00:01] Hoping for Rd7.} (39. Qxb6 Qxd5 40. Qxg6+ Kf8 41. Qf6+ Qf7 42. Qh8+ Ke7 43. Qe5+ Kd7 44. Qb5+ Ke6 45. Qc6+ Kf5 46. bxa4 Re6 47. Qd5+ Kg6 48. Qg5+ Kh7 $19) 39... axb3 $2 {[%emt 0:00:00]} (39... Rf8 40. f4 (40. bxa4 Qxf2+ 41. Qxf2 Rxf2+ 42. Kg1 Rxa2 $11) 40... axb3 41. axb3 Qe6) 40. axb3 {[%emt 0:00:02]} (40. Rd7 $142 Re7 41. Rd8+ Re8 42. axb3) 40... Rf8 {[%emt 0:00:00]} 41. Kg1 {[%emt 0:00:14]} Qf6 {[%emt 0:00:10]} 42. Qe3 {[%emt 0:01:54]} Rd8 {[%emt 0:00:11] [#]} 43. Rxd8+ {[%emt 0:00:18]} ({White should play} 43. Re5 $1 $18) 43... Qxd8 {[%emt 0:00:01] KQ-KQ} 44. Qe6+ {[%emt 0:00:01]} Kg7 {[%emt 0:00:02]} 45. Kg2 {[%emt 0:00:01]} Qd4 {[%emt 0:00:08]} 46. Qe7+ {[%emt 0:00:01]} Kg8 {[%emt 0:00:03]} 47. Qe6+ {[%emt 0:00:06]} Kg7 {[%emt 0:00:00]} 48. Qe3 {[%emt 0:00:12]} Qd5+ {[%emt 0:00:09]} 49. Qf3 {[%emt 0:00:03]} Qd4 {[%emt 0:00:09]} 50. Qc6 {[%emt 0:00:06]} Kh7 {[%emt 0:00:17]} 51. Qb7+ {[%emt 0:00:09]} Kg8 {[%emt 0:00:08]} 52. Qc6 {[%emt 0:00:12]} (52. Qc8+ $16 Kg7 53. Qc6) 52... Kg7 {[%emt 0:00:36]} (52... Kh7 $1 $11 {remains equal.}) 53. Qc4 {[%emt 0:00:03]} Qe5 {[%emt 0:00:24]} 54. Qd3 {[%emt 0:00:22] Black must now prevent Qd7+.} Qc5 {[%emt 0:00:05]} 55. Qe4 {[%emt 0:00:02]} Qd6 {[%emt 0:00:15]} 56. Qe3 {[%emt 0:00:41]} Qd5+ {[%emt 0:00:12]} 57. Qf3 {[%emt 0:00:09]} Qd4 {[%emt 0:00:06]} 58. Qc6 {[%emt 0:00:11] Prevents Qd7.} Kh7 $1 {[%emt 0:00:24]} 59. Qc7+ {[%emt 0:00:13]} Kg8 $2 {[%emt 0:00:03][%mdl 8192] [#]} (59... Kh8 $16) 60. Qc4+ $1 {[%emt 0:00:18] Weighted Error Value: White=0.23 (precise) /Black=0.28 (precise)} 1-0

[Event "Chinese League Div-A Rapid 2022"]
[Site "Fuling,Chongqing"]
[Date "2022.09.07"]
[Round "2.18"]
[White "Li, Chao b"]
[Black "Zhao, Jun"]
[Result "1/2-1/2"]
[ECO "C67"]
[WhiteElo "2679"]
[BlackElo "2619"]
[Annotator "TA"]
[PlyCount "46"]
[EventDate "2022.09.07"]
[EventType "team-tourn"]
[EventCountry "CHN"]
[SourceTitle "playchess.com"]
[Source "ChessBase"]
[SourceQuality "1"]
[TimeControl "1500+10"]

{[%evp 18,46,30,0,25,5,14,9,6,8,1,2,10,5,10,0,17,6,3,0,0,0,0,0,7,-35,0,0,4,-37,25]} 1. e4 {[%emt 0:00:19]} e5 {[%emt 0:00:19]} 2. Nf3 {[%emt 0:00:02]} Nc6 {[%emt 0:00:07]} 3. Bb5 {[%emt 0:00:06]} Nf6 {[%emt 0:00:19]} 4. O-O {[%emt 0:00:15]} Nxe4 {[%emt 0:00:05]} 5. d4 {[%emt 0:00:33]} Nd6 {[%emt 0:00:12]} 6. Bxc6 {[%emt 0:00:02]} dxc6 {[%emt 0:00:03]} 7. dxe5 {[%emt 0:00:03]} Nf5 {[%emt 0:00:03]} 8. Qxd8+ {[%emt 0:00:03]} Kxd8 {[%emt 0:00:02]} 9. Nc3 {[%emt 0:00:04][%cal Bb1c3,Bc3e2,Be2d4][%mdl 32]} Ke8 {[%emt 0:00:59]} 10. h3 {[%emt 0:00:07]} h5 {[%emt 0:01:10] C67: Ruy Lopez: Berlin Defence: 4 0-0 Nxe4.} 11. Rd1 {[%emt 0:00:14]} Be7 {[%emt 0:00:32]} 12. Ne2 {[%emt 0:00:07]} Nh4 {[%emt 0:01:38] The position is equal.} 13. Nxh4 {[%emt 0:00:38]} Bxh4 {[%emt 0:00:03]} 14. Be3 {[%emt 0:00:27] [#]} Be6 $146 {[%emt 0:01:57]} ({Predecessor:} 14... Be7 15. Rd2 h4 16. Rad1 Rh5 17. f4 f6 18. exf6 gxf6 19. Nd4 Kf7 20. c4 Bc5 {½-½ (36) Li,C (2690)-Wei,Y (2725) China 2019}) 15. Nd4 {[%emt 0:00:18]} Bd7 {[%emt 0:01:13]} 16. Ne2 {[%emt 0:00:31]} Be6 {[%emt 0:00:17]} 17. Rd2 {[%emt 0:00:14]} Rd8 {[%emt 0:00:26]} 18. Rad1 {[%emt 0:00:03]} Rxd2 {[%emt 0:00:11]} 19. Rxd2 {[%emt 0:00:02]} b6 {[%emt 0:00:20]} 20. Nd4 {[%emt 0:00:11]} Bd7 $1 {[%emt 0:00:02]} 21. Ne2 {[%emt 0:00:28]} Be6 {[%emt 0:00:04]} 22. Nd4 {[%emt 0:00:02]} Bd7 {[%emt 0:00:01]} 23. Ne2 {[%emt 0:00:02]} Be6 {[%emt 0:00:14] Not much happened in this game.  Weighted Error Value: White=0.13 (very precise) /Black=0.05 (flawless)} (23... Kd8 $15) 1/2-1/2